[Event "Titled Tuesday Blitz June 1 2021"]
[White "Willow, Jonah B"]
[Black "Zhigalko, Sergei"]
[WhiteFideId "438804"]
[BlackFideId "13502956"]
[WhiteElo "2261"]
[BlackElo "2662"]
[Result "0-1"]
[Round "10"]
[TimeControl "180+1"]
[Date "2021.06.01"]
[WhiteClock "0:00:01"]
[BlackClock "0:00:05"]

1. e4 {[%clk 0:03:00]}  c5 {[%clk 0:03:00]} 2. Nf3 {[%clk 0:03:00]}  Nc6 {[%clk 0:03:00]} 3. d4 {[%clk 0:03:00]}  cxd4 {[%clk 0:03:01]} 4. Nxd4 {[%clk 0:03:01]}  Nf6 {[%clk 0:03:02]} 5. Nc3 {[%clk 0:03:00]}  e5 {[%clk 0:03:01]} 6. Ndb5 {[%clk 0:03:00]}  d6 {[%clk 0:03:02]} 7. Bg5 {[%clk 0:02:57]}  a6 {[%clk 0:03:02]} 8. Na3 {[%clk 0:02:57]}  b5 {[%clk 0:03:03]} 9. Nd5 {[%clk 0:02:58]}  Be7 {[%clk 0:03:02]} 10. Bxf6 {[%clk 0:02:58]}  Bxf6 {[%clk 0:03:03]} 11. c4 {[%clk 0:02:58]}  b4 {[%clk 0:03:02]} 12. Nc2 {[%clk 0:02:59]}  O-O {[%clk 0:03:03]} 13. g3 {[%clk 0:02:59]}  a5 {[%clk 0:03:03]} 14. Bg2 {[%clk 0:02:59]}  Bg5 {[%clk 0:03:01]} 15. O-O {[%clk 0:02:58]}  Be6 {[%clk 0:02:55]} 16. b3 {[%clk 0:02:58]}  Kh8 {[%clk 0:02:55]} 17. Qd3 {[%clk 0:02:57]}  Rb8 {[%clk 0:02:52]} 18. Rfd1 {[%clk 0:02:54]}  g6 {[%clk 0:02:51]} 19. a3 {[%clk 0:02:41]}  bxa3 {[%clk 0:02:49]} 20. Rxa3 {[%clk 0:02:41]}  Qd7 {[%clk 0:02:31]} 21. h4 {[%clk 0:02:19]}  Bh6 {[%clk 0:02:15]} 22. Nf6 {[%clk 0:02:07]}  Qe7 {[%clk 0:02:14]} 23. Nd5 {[%clk 0:01:52]}  Qa7 {[%clk 0:01:54]} 24. b4 {[%clk 0:01:38]}  f5 {[%clk 0:01:54]} 25. b5 {[%clk 0:01:28]}  fxe4 {[%clk 0:01:49]} 26. Qe2 {[%clk 0:01:16]}  Bxd5 {[%clk 0:01:12]} 27. cxd5 {[%clk 0:01:15]}  Ne7 {[%clk 0:01:04]} 28. Bxe4 {[%clk 0:01:10]}  Rbc8 {[%clk 0:00:59]} 29. Ne3 {[%clk 0:01:04]}  Nf5 {[%clk 0:00:36]} 30. Bxf5 {[%clk 0:00:48]}  gxf5 {[%clk 0:00:35]} 31. Qh5 {[%clk 0:00:32]}  Bxe3 {[%clk 0:00:31]} 32. Rxe3 {[%clk 0:00:33]}  f4 {[%clk 0:00:31]} 33. gxf4 {[%clk 0:00:16]}  Rxf4 {[%clk 0:00:31]} 34. Qh6 {[%clk 0:00:11]}  Rg8+ {[%clk 0:00:25]} 35. Kh1 {[%clk 0:00:04]}  Rg6 {[%clk 0:00:12]} 36. Qh5 {[%clk 0:00:02]}  Rxf2 {[%clk 0:00:09]} 37. Rde1 {[%clk 0:00:02]}  Rf4 {[%clk 0:00:05]} 38. b6 {[%clk 0:00:01]}  Qxb6 {[%clk 0:00:05]} 39. Kh2 {[%clk 0:00:01]}  Qd8 {[%clk 0:00:05]} 0-1


[Site "https://www.chess.com"]

[Event "Titled Tuesday Blitz June 1 2021"]
[White "Aldokhin, Ivan"]
[Black "Willow, Jonah B"]
[WhiteFideId "24115720"]
[BlackFideId "438804"]
[WhiteElo "2306"]
[BlackElo "2261"]
[Result "0-1"]
[Round "11"]
[TimeControl "180+1"]
[Date "2021.06.01"]
[WhiteClock "0:00:03"]
[BlackClock "0:00:20"]

1. e4 {[%clk 0:03:00]}  c5 {[%clk 0:02:52]} 2. Nf3 {[%clk 0:02:58]}  g6 {[%clk 0:02:52]} 3. d4 {[%clk 0:02:57]}  cxd4 {[%clk 0:02:53]} 4. Nxd4 {[%clk 0:02:57]}  Nc6 {[%clk 0:02:52]} 5. Nc3 {[%clk 0:02:58]}  Bg7 {[%clk 0:02:52]} 6. Be3 {[%clk 0:02:57]}  Nf6 {[%clk 0:02:47]} 7. Bc4 {[%clk 0:02:57]}  O-O {[%clk 0:02:44]} 8. Bb3 {[%clk 0:02:57]}  d6 {[%clk 0:02:40]} 9. h3 {[%clk 0:02:56]}  Na5 {[%clk 0:02:39]} 10. O-O {[%clk 0:02:52]}  b6 {[%clk 0:02:37]} 11. Qd2 {[%clk 0:02:33]}  Bb7 {[%clk 0:02:35]} 12. f3 {[%clk 0:02:32]}  Rc8 {[%clk 0:02:35]} 13. Bh6 {[%clk 0:02:32]}  Nc4 {[%clk 0:02:34]} 14. Bxc4 {[%clk 0:02:32]}  Rxc4 {[%clk 0:02:34]} 15. Bxg7 {[%clk 0:02:32]}  Kxg7 {[%clk 0:02:35]} 16. Rad1 {[%clk 0:02:20]}  Qc7 {[%clk 0:02:34]} 17. Ncb5 {[%clk 0:02:11]}  Qb8 {[%clk 0:02:33]} 18. b3 {[%clk 0:02:04]}  Rcc8 {[%clk 0:02:31]} 19. c4 {[%clk 0:02:04]}  a6 {[%clk 0:02:29]} 20. Nc3 {[%clk 0:01:59]}  Ba8 {[%clk 0:02:22]} 21. a4 {[%clk 0:01:57]}  Qc7 {[%clk 0:02:20]} 22. Kh1 {[%clk 0:01:48]}  Bc6 {[%clk 0:02:19]} 23. Nd5 {[%clk 0:01:41]}  Bxd5 {[%clk 0:02:12]} 24. exd5 {[%clk 0:01:40]}  Nd7 {[%clk 0:02:09]} 25. Rde1 {[%clk 0:01:37]}  Rfe8 {[%clk 0:02:09]} 26. f4 {[%clk 0:01:35]}  Qc5 {[%clk 0:02:02]} 27. Rf3 {[%clk 0:01:16]}  Nf6 {[%clk 0:01:37]} 28. f5 {[%clk 0:01:08]}  Kg8 {[%clk 0:01:07]} 29. Rfe3 {[%clk 0:01:02]}  Rc7 {[%clk 0:01:04]} 30. Nc6 {[%clk 0:00:56]}  Nh5 {[%clk 0:00:59]} 31. Qc3 {[%clk 0:00:37]}  Rxc6 {[%clk 0:00:55]} 32. dxc6 {[%clk 0:00:37]}  Qxc6 {[%clk 0:00:56]} 33. Rxe7 {[%clk 0:00:35]}  Rf8 {[%clk 0:00:53]} 34. Qf3 {[%clk 0:00:30]}  Qxf3 {[%clk 0:00:51]} 35. gxf3 {[%clk 0:00:30]}  Ng3+ {[%clk 0:00:52]} 36. Kg2 {[%clk 0:00:29]}  Nxf5 {[%clk 0:00:53]} 37. Rb7 {[%clk 0:00:27]}  Rd8 {[%clk 0:00:48]} 38. Rxb6 {[%clk 0:00:25]}  d5 {[%clk 0:00:48]} 39. cxd5 {[%clk 0:00:24]}  Rxd5 {[%clk 0:00:49]} 40. Re2 {[%clk 0:00:14]}  Rd3 {[%clk 0:00:49]} 41. b4 {[%clk 0:00:11]}  Nh4+ {[%clk 0:00:49]} 42. Kg3 {[%clk 0:00:08]}  Nxf3 {[%clk 0:00:47]} 43. Kf4 {[%clk 0:00:09]}  Rb3 {[%clk 0:00:45]} 44. Ra2 {[%clk 0:00:05]}  Nd4 {[%clk 0:00:43]} 45. b5 {[%clk 0:00:06]}  Ne6+ {[%clk 0:00:41]} 46. Ke5 {[%clk 0:00:05]}  Re3+ {[%clk 0:00:41]} 47. Kf6 {[%clk 0:00:04]}  Nf8 {[%clk 0:00:37]} 48. Rb7 {[%clk 0:00:03]}  h6 {[%clk 0:00:22]} 49. Re7 {[%clk 0:00:03]}  Nh7# {[%clk 0:00:20]} 0-1


[Site "https://www.chess.com"]

[Event "Titled Tuesday Blitz June 1 2021"]
[White "Andreikin, Dmitry"]
[Black "Grigorov, Grigor"]
[WhiteFideId "4158814"]
[BlackFideId "2907313"]
[WhiteElo "2782"]
[BlackElo "2510"]
[Result "1-0"]
[Round "11"]
[TimeControl "180+1"]
[Date "2021.06.01"]
[WhiteClock "0:00:34"]
[BlackClock "0:00:04"]

1. e4 {[%clk 0:03:00]}  c6 {[%clk 0:02:59]} 2. Nf3 {[%clk 0:03:00]}  d5 {[%clk 0:02:59]} 3. d3 {[%clk 0:03:01]}  dxe4 {[%clk 0:02:59]} 4. dxe4 {[%clk 0:03:02]}  Qxd1+ {[%clk 0:02:58]} 5. Kxd1 {[%clk 0:03:02]}  Nf6 {[%clk 0:02:57]} 6. Nfd2 {[%clk 0:03:02]}  h5 {[%clk 0:02:57]} 7. f3 {[%clk 0:02:59]}  g5 {[%clk 0:02:42]} 8. c3 {[%clk 0:02:53]}  g4 {[%clk 0:02:34]} 9. a4 {[%clk 0:02:50]}  Bh6 {[%clk 0:02:28]} 10. Nc4 {[%clk 0:02:48]}  Bxc1 {[%clk 0:02:27]} 11. Kxc1 {[%clk 0:02:49]}  Be6 {[%clk 0:02:26]} 12. Nbd2 {[%clk 0:02:45]}  Nbd7 {[%clk 0:02:23]} 13. Kc2 {[%clk 0:02:43]}  O-O-O {[%clk 0:02:21]} 14. a5 {[%clk 0:02:35]}  h4 {[%clk 0:02:15]} 15. f4 {[%clk 0:02:21]}  Nc5 {[%clk 0:02:10]} 16. Re1 {[%clk 0:02:20]}  Nfxe4 {[%clk 0:01:19]} 17. Nxe4 {[%clk 0:02:12]}  Bf5 {[%clk 0:00:49]} 18. Nd2 {[%clk 0:02:11]}  Rxd2+ {[%clk 0:00:47]} 19. Kxd2 {[%clk 0:02:10]}  Rd8+ {[%clk 0:00:45]} 20. Ke3 {[%clk 0:02:02]}  Nxe4 {[%clk 0:00:42]} 21. Bd3 {[%clk 0:01:59]}  Ng3 {[%clk 0:00:29]} 22. Bxf5+ {[%clk 0:01:41]}  Nxf5+ {[%clk 0:00:30]} 23. Ke2 {[%clk 0:01:38]}  g3 {[%clk 0:00:29]} 24. Rd1 {[%clk 0:01:22]}  Rxd1 {[%clk 0:00:26]} 25. Kxd1 {[%clk 0:01:22]}  gxh2 {[%clk 0:00:17]} 26. Rxh2 {[%clk 0:01:23]}  Kd7 {[%clk 0:00:17]} 27. Ke2 {[%clk 0:01:18]}  Kd6 {[%clk 0:00:17]} 28. Kd3 {[%clk 0:01:11]}  e6 {[%clk 0:00:14]} 29. Rh1 {[%clk 0:01:10]}  Kc5 {[%clk 0:00:14]} 30. b4+ {[%clk 0:01:00]}  Kb5 {[%clk 0:00:14]} 31. Rb1 {[%clk 0:00:55]}  Nd6 {[%clk 0:00:12]} 32. Rh1 {[%clk 0:00:52]}  Nf5 {[%clk 0:00:12]} 33. c4+ {[%clk 0:00:35]}  Kxb4 {[%clk 0:00:10]} 34. Rb1+ {[%clk 0:00:35]}  Kxa5 {[%clk 0:00:06]} 35. Rxb7 {[%clk 0:00:36]}  Nd6 {[%clk 0:00:04]} 36. Rd7 {[%clk 0:00:34]} 1-0


[Site "https://www.chess.com"]

[Event "Titled Tuesday Blitz June 1 2021"]
[White "Asis Gargatagli, Hipolito"]
[Black "Woodward, Andy"]
[WhiteFideId "2260735"]
[BlackFideId "30953499"]
[WhiteElo "2557"]
[BlackElo "2609"]
[Result "1-0"]
[Round "11"]
[TimeControl "180+1"]
[Date "2021.06.01"]
[WhiteClock "0:02:42"]
[BlackClock "0:01:50"]

1. e4 {[%clk 0:03:00]}  c5 {[%clk 0:03:00]} 2. Nf3 {[%clk 0:03:01]}  d6 {[%clk 0:03:00]} 3. Bc4 {[%clk 0:03:01]}  Nf6 {[%clk 0:03:00]} 4. d3 {[%clk 0:03:00]}  Nc6 {[%clk 0:03:00]} 5. O-O {[%clk 0:03:00]}  e6 {[%clk 0:03:00]} 6. a4 {[%clk 0:02:59]}  Be7 {[%clk 0:03:00]} 7. Bb3 {[%clk 0:03:00]}  O-O {[%clk 0:03:00]} 8. c3 {[%clk 0:03:00]}  b6 {[%clk 0:02:59]} 9. Re1 {[%clk 0:03:00]}  Bb7 {[%clk 0:02:59]} 10. Na3 {[%clk 0:03:00]}  a6 {[%clk 0:02:58]} 11. Bf4 {[%clk 0:03:00]}  h6 {[%clk 0:02:53]} 12. h3 {[%clk 0:03:00]}  Qd7 {[%clk 0:02:50]} 13. Nc4 {[%clk 0:03:00]}  Qd8 {[%clk 0:02:47]} 14. Ne3 {[%clk 0:02:59]}  b5 {[%clk 0:02:43]} 15. Bh2 {[%clk 0:02:53]}  d5 {[%clk 0:02:37]} 16. exd5 {[%clk 0:02:51]}  exd5 {[%clk 0:02:38]} 17. Nf5 {[%clk 0:02:50]}  c4 {[%clk 0:02:33]} 18. Bc2 {[%clk 0:02:50]}  Bc5 {[%clk 0:02:29]} 19. d4 {[%clk 0:02:49]}  Bb6 {[%clk 0:02:25]} 20. Ne5 {[%clk 0:02:47]}  Re8 {[%clk 0:02:15]} 21. Qf3 {[%clk 0:02:46]}  Ne4 {[%clk 0:02:07]} 22. Nxh6+ {[%clk 0:02:45]}  Kh7 {[%clk 0:02:05]} 23. Nhxf7 {[%clk 0:02:45]}  Qh4 {[%clk 0:02:01]} 24. Bxe4+ {[%clk 0:02:43]}  dxe4 {[%clk 0:02:01]} 25. Rxe4 {[%clk 0:02:44]}  Qxe4 {[%clk 0:01:49]} 26. Qh5+ {[%clk 0:02:41]}  Kg8 {[%clk 0:01:50]} 27. Qh8# {[%clk 0:02:42]} 1-0


[Site "https://www.chess.com"]

[Event "Titled Tuesday Blitz June 1 2021"]
[White "Baskin, Robert"]
[Black "Devaev, Alexander"]
[WhiteFideId "24662402"]
[BlackFideId "4169395"]
[WhiteElo "2462"]
[BlackElo "2185"]
[Result "1-0"]
[Round "11"]
[TimeControl "180+1"]
[Date "2021.06.01"]
[WhiteClock "0:00:13"]
[BlackClock "0:00:07"]

1. d4 {[%clk 0:03:00]}  Nf6 {[%clk 0:02:53]} 2. c4 {[%clk 0:03:00]}  e6 {[%clk 0:02:54]} 3. Nf3 {[%clk 0:02:55]}  d5 {[%clk 0:02:53]} 4. Nc3 {[%clk 0:02:55]}  Be7 {[%clk 0:02:51]} 5. Bg5 {[%clk 0:02:54]}  h6 {[%clk 0:02:51]} 6. Bh4 {[%clk 0:02:54]}  b6 {[%clk 0:02:51]} 7. e3 {[%clk 0:02:52]}  Bb7 {[%clk 0:02:51]} 8. cxd5 {[%clk 0:02:47]}  Nxd5 {[%clk 0:02:51]} 9. Bxe7 {[%clk 0:02:46]}  Qxe7 {[%clk 0:02:52]} 10. Nxd5 {[%clk 0:02:46]}  exd5 {[%clk 0:02:48]} 11. Bb5+ {[%clk 0:02:43]}  c6 {[%clk 0:02:48]} 12. Be2 {[%clk 0:02:43]}  Nd7 {[%clk 0:02:47]} 13. O-O {[%clk 0:02:42]}  O-O {[%clk 0:02:48]} 14. Qa4 {[%clk 0:02:40]}  Qd6 {[%clk 0:02:48]} 15. Rfc1 {[%clk 0:02:39]}  a5 {[%clk 0:02:48]} 16. Rc3 {[%clk 0:02:31]}  Rfe8 {[%clk 0:02:47]} 17. Rac1 {[%clk 0:02:31]}  b5 {[%clk 0:02:38]} 18. Qd1 {[%clk 0:02:24]}  a4 {[%clk 0:02:33]} 19. a3 {[%clk 0:02:22]}  f6 {[%clk 0:02:28]} 20. Ne1 {[%clk 0:02:21]}  Nb6 {[%clk 0:02:22]} 21. Nd3 {[%clk 0:02:19]}  Nc4 {[%clk 0:02:23]} 22. Nc5 {[%clk 0:02:19]}  Bc8 {[%clk 0:02:21]} 23. Bxc4 {[%clk 0:02:17]}  dxc4 {[%clk 0:02:21]} 24. Qh5 {[%clk 0:02:08]}  Be6 {[%clk 0:02:16]} 25. h3 {[%clk 0:02:01]}  Bf7 {[%clk 0:02:16]} 26. Qh4 {[%clk 0:01:59]}  Bg6 {[%clk 0:02:10]} 27. Rd1 {[%clk 0:01:48]}  Rad8 {[%clk 0:02:05]} 28. Nb7 {[%clk 0:01:42]}  Qe7 {[%clk 0:02:06]} 29. Nxd8 {[%clk 0:01:41]}  Qxd8 {[%clk 0:02:06]} 30. Qg3 {[%clk 0:01:35]}  Kh7 {[%clk 0:02:06]} 31. f3 {[%clk 0:01:11]}  f5 {[%clk 0:01:23]} 32. Qf4 {[%clk 0:01:04]}  Qd7 {[%clk 0:01:22]} 33. Rc2 {[%clk 0:01:03]}  Bf7 {[%clk 0:01:20]} 34. Re1 {[%clk 0:00:45]}  g5 {[%clk 0:01:13]} 35. Qg3 {[%clk 0:00:45]}  Bg6 {[%clk 0:01:12]} 36. Rd2 {[%clk 0:00:38]}  Re6 {[%clk 0:00:55]} 37. h4 {[%clk 0:00:30]}  Qe7 {[%clk 0:00:45]} 38. hxg5 {[%clk 0:00:25]}  hxg5 {[%clk 0:00:46]} 39. Rde2 {[%clk 0:00:20]}  f4 {[%clk 0:00:39]} 40. Qh3+ {[%clk 0:00:20]}  Kg7 {[%clk 0:00:37]} 41. e4 {[%clk 0:00:20]}  Qd6 {[%clk 0:00:24]} 42. Rd2 {[%clk 0:00:20]}  Re7 {[%clk 0:00:17]} 43. Qg4 {[%clk 0:00:20]}  Qf6 {[%clk 0:00:16]} 44. Red1 {[%clk 0:00:20]}  Kh6 {[%clk 0:00:13]} 45. d5 {[%clk 0:00:19]}  cxd5 {[%clk 0:00:13]} 46. Rxd5 {[%clk 0:00:19]}  Re6 {[%clk 0:00:12]} 47. Rd7 {[%clk 0:00:15]}  Rc6 {[%clk 0:00:10]} 48. Qh3+ {[%clk 0:00:14]}  Bh5 {[%clk 0:00:11]} 49. Rh7+ {[%clk 0:00:14]}  Kxh7 {[%clk 0:00:11]} 50. Qxh5+ {[%clk 0:00:14]}  Kg8 {[%clk 0:00:11]} 51. Qe8+ {[%clk 0:00:13]}  Kg7 {[%clk 0:00:09]} 52. Rd7+ {[%clk 0:00:13]}  Kh6 {[%clk 0:00:10]} 53. Qg8 {[%clk 0:00:13]}  Rd6 {[%clk 0:00:07]} 54. Rh7# {[%clk 0:00:13]} 1-0


[Site "https://www.chess.com"]

[Event "Titled Tuesday Blitz June 1 2021"]
[White "Blomqvist, Erik"]
[Black "Rakotomaharo, Fy Antenaina"]
[WhiteFideId "1709437"]
[BlackFideId "13100050"]
[WhiteElo "2460"]
[BlackElo "2378"]
[Result "1-0"]
[Round "11"]
[TimeControl "180+1"]
[Date "2021.06.01"]
[WhiteClock "0:00:08"]
[BlackClock "0:00:29"]

1. e4 {[%clk 0:03:00]}  e5 {[%clk 0:02:59]} 2. Nf3 {[%clk 0:02:59]}  Nc6 {[%clk 0:03:00]} 3. Bb5 {[%clk 0:02:58]}  a6 {[%clk 0:03:00]} 4. Ba4 {[%clk 0:02:58]}  Bc5 {[%clk 0:03:01]} 5. O-O {[%clk 0:02:58]}  Nge7 {[%clk 0:03:01]} 6. c3 {[%clk 0:02:56]}  Ng6 {[%clk 0:03:01]} 7. d4 {[%clk 0:02:56]}  Ba7 {[%clk 0:03:02]} 8. Be3 {[%clk 0:02:47]}  O-O {[%clk 0:02:58]} 9. Nbd2 {[%clk 0:02:47]}  exd4 {[%clk 0:02:48]} 10. cxd4 {[%clk 0:02:47]}  d5 {[%clk 0:02:48]} 11. exd5 {[%clk 0:02:17]}  Nb4 {[%clk 0:02:43]} 12. Bb3 {[%clk 0:02:04]}  Nxd5 {[%clk 0:02:41]} 13. Rc1 {[%clk 0:02:02]}  c6 {[%clk 0:02:35]} 14. a3 {[%clk 0:01:52]}  Re8 {[%clk 0:02:33]} 15. Bg5 {[%clk 0:01:39]}  f6 {[%clk 0:02:33]} 16. Be3 {[%clk 0:01:37]}  Kh8 {[%clk 0:02:33]} 17. Re1 {[%clk 0:01:29]}  Bf5 {[%clk 0:02:23]} 18. Nf1 {[%clk 0:01:23]}  Qd7 {[%clk 0:02:13]} 19. Ng3 {[%clk 0:01:23]}  Bg4 {[%clk 0:02:06]} 20. h3 {[%clk 0:01:23]}  Be6 {[%clk 0:02:02]} 21. Bd2 {[%clk 0:01:20]}  Rad8 {[%clk 0:01:56]} 22. Qc2 {[%clk 0:01:18]}  Ndf4 {[%clk 0:01:41]} 23. Bxe6 {[%clk 0:01:09]}  Nxe6 {[%clk 0:01:39]} 24. Rcd1 {[%clk 0:00:30]}  Nxd4 {[%clk 0:01:30]} 25. Rxe8+ {[%clk 0:00:31]}  Rxe8 {[%clk 0:01:29]} 26. Nxd4 {[%clk 0:00:31]}  Bxd4 {[%clk 0:01:27]} 27. Be3 {[%clk 0:00:27]}  c5 {[%clk 0:01:13]} 28. Nf5 {[%clk 0:00:21]}  Qe6 {[%clk 0:00:38]} 29. Nxd4 {[%clk 0:00:20]}  cxd4 {[%clk 0:00:39]} 30. Rxd4 {[%clk 0:00:21]}  f5 {[%clk 0:00:36]} 31. Qc7 {[%clk 0:00:16]}  h6 {[%clk 0:00:28]} 32. Rd6 {[%clk 0:00:13]}  Qe5 {[%clk 0:00:21]} 33. Bd4 {[%clk 0:00:13]}  Qe1+ {[%clk 0:00:22]} 34. Kh2 {[%clk 0:00:13]}  Re7 {[%clk 0:00:22]} 35. Qc8+ {[%clk 0:00:10]}  Kh7 {[%clk 0:00:17]} 36. Qxf5 {[%clk 0:00:10]}  Qe4 {[%clk 0:00:18]} 37. Qxe4 {[%clk 0:00:08]}  Rxe4 {[%clk 0:00:18]} 38. Rd7 {[%clk 0:00:07]}  Kg8 {[%clk 0:00:15]} 39. Rxg7+ {[%clk 0:00:06]}  Kf8 {[%clk 0:00:15]} 40. Rxg6 {[%clk 0:00:07]}  Rxd4 {[%clk 0:00:16]} 41. Rb6 {[%clk 0:00:07]}  Rd7 {[%clk 0:00:16]} 42. Rxh6 {[%clk 0:00:06]}  Kg7 {[%clk 0:00:16]} 43. Rb6 {[%clk 0:00:06]}  Rc7 {[%clk 0:00:17]} 44. f4 {[%clk 0:00:06]}  Kf7 {[%clk 0:00:18]} 45. Kg3 {[%clk 0:00:07]}  Ke7 {[%clk 0:00:19]} 46. Kg4 {[%clk 0:00:07]}  Kd7 {[%clk 0:00:20]} 47. h4 {[%clk 0:00:08]}  Kc8 {[%clk 0:00:21]} 48. h5 {[%clk 0:00:08]}  Rc2 {[%clk 0:00:22]} 49. g3 {[%clk 0:00:08]}  Rh2 {[%clk 0:00:22]} 50. Kg5 {[%clk 0:00:07]}  Kc7 {[%clk 0:00:23]} 51. Rb3 {[%clk 0:00:07]}  Rg2 {[%clk 0:00:24]} 52. g4 {[%clk 0:00:08]}  Rh2 {[%clk 0:00:25]} 53. h6 {[%clk 0:00:08]}  b5 {[%clk 0:00:25]} 54. Kg6 {[%clk 0:00:08]}  Kb6 {[%clk 0:00:26]} 55. h7 {[%clk 0:00:09]}  a5 {[%clk 0:00:27]} 56. Kg7 {[%clk 0:00:09]}  a4 {[%clk 0:00:27]} 57. Re3 {[%clk 0:00:09]}  Rc2 {[%clk 0:00:27]} 58. h8=Q {[%clk 0:00:08]}  Rc7+ {[%clk 0:00:28]} 59. Kg6 {[%clk 0:00:08]}  Rc6+ {[%clk 0:00:29]} 1-0


[Site "https://www.chess.com"]

[Event "Titled Tuesday Blitz June 1 2021"]
[White "Chizhikov, Vladislav"]
[Black "Koganov, Mikhail"]
[WhiteFideId "4178157"]
[BlackFideId "2038676"]
[WhiteElo "2265"]
[BlackElo "2093"]
[Result "0-1"]
[Round "11"]
[TimeControl "180+1"]
[Date "2021.06.01"]
[WhiteClock "0:00:03"]
[BlackClock "0:01:17"]

1. e4 {[%clk 0:03:00]}  e5 {[%clk 0:02:59]} 2. Nf3 {[%clk 0:02:59]}  Nc6 {[%clk 0:02:59]} 3. Bc4 {[%clk 0:03:00]}  Bc5 {[%clk 0:02:58]} 4. O-O {[%clk 0:02:59]}  Nf6 {[%clk 0:02:57]} 5. d4 {[%clk 0:03:00]}  Bxd4 {[%clk 0:02:55]} 6. Nxd4 {[%clk 0:02:59]}  Nxd4 {[%clk 0:02:55]} 7. Bg5 {[%clk 0:03:00]}  Ne6 {[%clk 0:02:50]} 8. f4 {[%clk 0:02:59]}  exf4 {[%clk 0:02:45]} 9. Bxe6 {[%clk 0:02:46]}  fxe6 {[%clk 0:02:41]} 10. e5 {[%clk 0:02:41]}  h6 {[%clk 0:02:41]} 11. Bxf6 {[%clk 0:02:41]}  gxf6 {[%clk 0:02:41]} 12. Qh5+ {[%clk 0:02:41]}  Kf8 {[%clk 0:02:38]} 13. exf6 {[%clk 0:01:59]}  Qxf6 {[%clk 0:02:36]} 14. Nc3 {[%clk 0:02:00]}  d6 {[%clk 0:02:35]} 15. Kh1 {[%clk 0:01:53]}  Qg5 {[%clk 0:02:34]} 16. Qe2 {[%clk 0:01:40]}  e5 {[%clk 0:02:32]} 17. Qc4 {[%clk 0:01:38]}  Rg8 {[%clk 0:02:25]} 18. Rf2 {[%clk 0:01:37]}  Rg7 {[%clk 0:02:25]} 19. Ne4 {[%clk 0:01:35]}  Qg6 {[%clk 0:02:22]} 20. Raf1 {[%clk 0:01:29]}  Be6 {[%clk 0:02:21]} 21. Qb4 {[%clk 0:01:24]}  Bd5 {[%clk 0:02:20]} 22. Re1 {[%clk 0:01:15]}  a5 {[%clk 0:02:15]} 23. Qa4 {[%clk 0:01:02]}  b5 {[%clk 0:02:13]} 24. Qxb5 {[%clk 0:01:02]}  Bxe4 {[%clk 0:02:13]} 25. Ree2 {[%clk 0:00:46]}  Kg8 {[%clk 0:02:00]} 26. Qc4+ {[%clk 0:00:38]}  d5 {[%clk 0:01:59]} 27. Qc3 {[%clk 0:00:37]}  Re8 {[%clk 0:01:54]} 28. Qxa5 {[%clk 0:00:36]}  Kh7 {[%clk 0:01:53]} 29. a4 {[%clk 0:00:34]}  f3 {[%clk 0:01:46]} 30. Rd2 {[%clk 0:00:30]}  fxg2+ {[%clk 0:01:45]} 31. Kg1 {[%clk 0:00:30]}  Ree7 {[%clk 0:01:36]} 32. Qc3 {[%clk 0:00:26]}  Qg5 {[%clk 0:01:27]} 33. a5 {[%clk 0:00:23]}  Ref7 {[%clk 0:01:21]} 34. Qc5 {[%clk 0:00:17]}  d4 {[%clk 0:01:18]} 35. Rfe2 {[%clk 0:00:03]}  Rf1# {[%clk 0:01:17]} 0-1


[Site "https://www.chess.com"]

[Event "Titled Tuesday Blitz June 1 2021"]
[White "Costachi, Mihnea"]
[Black "Visakh N R"]
[WhiteFideId "1217518"]
[BlackFideId "25012223"]
[WhiteElo "2479"]
[BlackElo "2428"]
[Result "0-1"]
[Round "11"]
[TimeControl "180+1"]
[Date "2021.06.01"]
[WhiteClock "0:00:08"]
[BlackClock "0:00:19"]

1. d4 {[%clk 0:03:00]}  Nf6 {[%clk 0:02:59]} 2. c4 {[%clk 0:03:01]}  g6 {[%clk 0:02:59]} 3. Nc3 {[%clk 0:03:01]}  d5 {[%clk 0:03:00]} 4. Nf3 {[%clk 0:02:59]}  Bg7 {[%clk 0:02:59]} 5. h4 {[%clk 0:03:00]}  dxc4 {[%clk 0:02:38]} 6. e4 {[%clk 0:03:00]}  c5 {[%clk 0:02:38]} 7. d5 {[%clk 0:03:00]}  b5 {[%clk 0:02:38]} 8. h5 {[%clk 0:03:01]}  Nxh5 {[%clk 0:02:33]} 9. Nxb5 {[%clk 0:03:00]}  O-O {[%clk 0:02:23]} 10. Bxc4 {[%clk 0:02:59]}  Nd7 {[%clk 0:02:21]} 11. O-O {[%clk 0:02:48]}  Nb6 {[%clk 0:02:20]} 12. Be2 {[%clk 0:02:45]}  e6 {[%clk 0:02:19]} 13. d6 {[%clk 0:02:40]}  Bb7 {[%clk 0:02:17]} 14. e5 {[%clk 0:02:37]}  Nd5 {[%clk 0:02:12]} 15. Bg5 {[%clk 0:02:34]}  f6 {[%clk 0:02:10]} 16. exf6 {[%clk 0:02:34]}  Bxf6 {[%clk 0:02:10]} 17. Bxf6 {[%clk 0:02:27]}  Qxf6 {[%clk 0:02:11]} 18. Nc7 {[%clk 0:02:21]}  Nxc7 {[%clk 0:02:05]} 19. dxc7 {[%clk 0:02:22]}  Nf4 {[%clk 0:02:06]} 20. Rc1 {[%clk 0:02:11]}  Qf5 {[%clk 0:01:57]} 21. Ne1 {[%clk 0:01:16]}  Qg5 {[%clk 0:01:31]} 22. Bf3 {[%clk 0:01:04]}  Ba6 {[%clk 0:01:01]} 23. Bxa8 {[%clk 0:00:38]}  Ne2+ {[%clk 0:01:00]} 24. Qxe2 {[%clk 0:00:38]}  Bxe2 {[%clk 0:01:01]} 25. f4 {[%clk 0:00:30]}  Qg3 {[%clk 0:00:39]} 26. Rf2 {[%clk 0:00:25]}  Rxa8 {[%clk 0:00:36]} 27. Rxe2 {[%clk 0:00:22]}  Qxf4 {[%clk 0:00:36]} 28. Nd3 {[%clk 0:00:18]}  Qxc7 {[%clk 0:00:33]} 29. Rxc5 {[%clk 0:00:18]}  Qb6 {[%clk 0:00:32]} 30. b4 {[%clk 0:00:17]}  Rd8 {[%clk 0:00:32]} 31. Re3 {[%clk 0:00:14]}  a5 {[%clk 0:00:24]} 32. a3 {[%clk 0:00:14]}  axb4 {[%clk 0:00:23]} 33. axb4 {[%clk 0:00:15]}  Rd5 {[%clk 0:00:22]} 34. Kf2 {[%clk 0:00:13]}  Rxc5 {[%clk 0:00:22]} 35. bxc5 {[%clk 0:00:14]}  Qc6 {[%clk 0:00:21]} 36. Re2 {[%clk 0:00:10]}  Qd5 {[%clk 0:00:21]} 37. Ke3 {[%clk 0:00:11]}  e5 {[%clk 0:00:21]} 38. Rc2 {[%clk 0:00:10]}  Qd4+ {[%clk 0:00:20]} 39. Ke2 {[%clk 0:00:09]}  Qe4+ {[%clk 0:00:20]} 40. Kd2 {[%clk 0:00:09]}  Qxg2+ {[%clk 0:00:20]} 41. Kc3 {[%clk 0:00:10]}  Qf3 {[%clk 0:00:19]} 42. Kc4 {[%clk 0:00:06]}  Qe4+ {[%clk 0:00:19]} 43. Kc3 {[%clk 0:00:06]}  Qd4+ {[%clk 0:00:20]} 44. Kd2 {[%clk 0:00:06]}  e4 {[%clk 0:00:20]} 45. c6 {[%clk 0:00:06]}  Qxd3+ {[%clk 0:00:20]} 46. Kc1 {[%clk 0:00:07]}  Qa3+ {[%clk 0:00:19]} 47. Kd1 {[%clk 0:00:05]}  Qd3+ {[%clk 0:00:18]} 48. Kc1 {[%clk 0:00:05]}  Qd8 {[%clk 0:00:18]} 49. c7 {[%clk 0:00:06]}  Qc8 {[%clk 0:00:19]} 50. Kd2 {[%clk 0:00:06]}  Kf7 {[%clk 0:00:19]} 51. Ke3 {[%clk 0:00:06]}  Ke7 {[%clk 0:00:19]} 52. Rc4 {[%clk 0:00:04]}  Kd7 {[%clk 0:00:19]} 53. Rc3 {[%clk 0:00:02]}  Qxc7 {[%clk 0:00:18]} 54. Rxc7+ {[%clk 0:00:03]}  Kxc7 {[%clk 0:00:19]} 55. Kxe4 {[%clk 0:00:04]}  h5 {[%clk 0:00:17]} 56. Ke5 {[%clk 0:00:05]}  h4 {[%clk 0:00:17]} 57. Kf4 {[%clk 0:00:05]}  g5+ {[%clk 0:00:17]} 58. Kxg5 {[%clk 0:00:06]}  h3 {[%clk 0:00:17]} 59. Kg4 {[%clk 0:00:07]}  h2 {[%clk 0:00:18]} 60. Kg3 {[%clk 0:00:08]}  h1=Q {[%clk 0:00:19]} 0-1


[Site "https://www.chess.com"]